Workbook

Sheet ~#temp (hidden)

Sheet CAP2
B1: Purpose of calculation: | AD1: Table of compatible units
C2: Calculate stress in a pressure vessel ellipseoidal head. | AE2: Length | AF2: Time | AG2: Mass | AH2: Velocity | AI2: Acceleration | AJ2: Force | AK2: LDForce | AL2: Work | AM2: Energy | AN2: Power | AO2: Density | AP2: Stress
AD3: Fundamental | AE3: m | AF3: s | AG3: kg | AH3: m/s | AI3: m/s² | AJ3: kg.m/s² | AK3: kg/s² | AL3: kg.m/s².m | AM3: kg.m/s².m | AN3: kg.m²/s³ | AO3: kg/m³ | AP3: kg/m.s²
B4: Calculation Reference | AD4: SI | AE4: m | AF4: s | AG4: kg | AH4: m/s | AI4: m/s² | AJ4: N | AK4: N/m | AL4: J | AM4: J | AN4: W | AO4: kg/m³ | AP4: N/m²
C5: http://school.mech.uwa.edu.au/~swright/DANotes/pressVessels/shells/shells.html | AD5: SI (mm) | AE5: mm | AF5: s | AG5: t | AH5: mm/s | AI5: mm/s² | AJ5: N | AK5: N/mm | AL5: mJ | AM5: mJ | AN5: mW | AO5: t/mm³ | AP5: MPa
AD6: US Unit (ft) | AE6: ft | AF6: s | AG6: slug | AH6: ft/s | AI6: ft/s² | AJ6: lbf | AK6: lbf.ft | AL6: ft.lb | AM6: ft.lb | AN6: ft.lb/s | AO6: slug/ft³ | AP6: lbf/ft²
B7: Calculation Validation | AD7: US Unit (in) | AE7: in | AF7: s | AG7: lbf.s²/in | AH7: in/s | AI7: in/s² | AJ7: lbf | AK7: lbf.in | AL7: in.lbf | AM7: in.lbf | AN7: in.lbf/s | AO7: lbf.s²/in⁴ | AP7: psi
C8: Formulas checked with XLC addin.
B10: Calculation Units | F10: 3
C12: depth of head
D13: b = | E13: 13908 | F13: =INDEX($AE$3:$AP$7,$F$10,MATCH("length",$AE$2:$AP$2,0)) -> mm | AD13: b = | AE13: =$E$13 -> 13908 | AF13: =$E$13 -> 13908 | AG13: 13908 | AH13: 13908 | AI13: 13908 | AJ13: 13908 | AK13: 13908 | AL13: 13908 | AM13: 13908 | AN13: 13908 | AO13: 13908 | AP13: 13908 | AQ13: 13908
C14: Cylinder radius
D15: a = | E15: =75400/2 -> 37700 | F15: =INDEX($AE$3:$AP$7,$F$10,MATCH("length",$AE$2:$AP$2,0)) -> mm | AD15: a = | AE15: =$E$15 -> 37700 | AF15: =$E$15 -> 37700 | AG15: 37700 | AH15: 37700 | AI15: 37700 | AJ15: 37700 | AK15: 37700 | AL15: 37700 | AM15: 37700 | AN15: 37700 | AO15: 37700 | AP15: 37700 | AQ15: 37700
C16: thickness
D17: t = | E17: 46.5 | F17: =INDEX($AE$3:$AP$7,$F$10,MATCH("length",$AE$2:$AP$2,0)) -> mm | AD17: t = | AE17: =$E$17 -> 46.5 | AF17: =$E$17 -> 46.5 | AG17: 46.5 | AH17: 46.5 | AI17: 46.5 | AJ17: 46.5 | AK17: 46.5 | AL17: 46.5 | AM17: 46.5 | AN17: 46.5 | AO17: 46.5 | AP17: 46.5 | AQ17: 46.5
C18: internal pressure
D19: P = | E19: 0.01727 | F19: =INDEX($AE$3:$AP$7,$F$10,MATCH("Stress",$AE$2:$AP$2,0)) -> MPa | AD19: P = | AE19: =$E$19 -> 0.01727 | AF19: =$E$19 -> 0.01727 | AG19: 0.01727 | AH19: 0.01727 | AI19: 0.01727 | AJ19: 0.01727 | AK19: 0.01727 | AL19: 0.01727 | AM19: 0.01727 | AN19: 0.01727 | AO19: 0.01727 | AP19: 0.01727 | AQ19: 0.01727
C20: position from cylinder axis
D21: r = | E21: =E15-4524 -> 33176 | F21: =INDEX($AE$3:$AP$7,$F$10,MATCH("length",$AE$2:$AP$2,0)) -> mm | AD21: r = | AE21: 0 | AF21: =AE21+$E$15/10 -> 3770 | AG21: =AF21+$E$15/10 -> 7540 | AH21: 11310 | AI21: 15080 | AJ21: 18850 | AK21: 22620 | AL21: 26390 | AM21: 30160 | AN21: =AM21+$E$15/20 -> 32045 | AO21: =AN21+$E$15/20 -> 33930 | AP21: 35815 | AQ21: 37700
D23: ε = | E23: =SQRT(1-(OVD(E13)/UND(E15))^2) -> 0.9294641423 | H23: =EQS(E23,"Units= ; EqnPrefix=Eqn. ; EqnNo= 41; Multiplication= 0; ShowWorking= 0; EqnStyle= 0; Eqp$H$23_0") ->  | AD23: ε = | AE23: =SQRT(1-(OVD(AE13)/UND(AE15))^2) -> 0.9294641423 | AF23: =SQRT(1-(OVD(AF13)/UND(AF15))^2) -> 0.9294641423 | AG23: =SQRT(1-(OVD(AG13)/UND(AG15))^2) -> 0.9294641423 | AH23: =SQRT(1-(OVD(AH13)/UND(AH15))^2) -> 0.9294641423 | AI23: =SQRT(1-(OVD(AI13)/UND(AI15))^2) -> 0.9294641423 | AJ23: =SQRT(1-(OVD(AJ13)/UND(AJ15))^2) -> 0.9294641423 | AK23: =SQRT(1-(OVD(AK13)/UND(AK15))^2) -> 0.9294641423 | AL23: =SQRT(1-(OVD(AL13)/UND(AL15))^2) -> 0.9294641423 | AM23: =SQRT(1-(OVD(AM13)/UND(AM15))^2) -> 0.9294641423 | AN23: =SQRT(1-(OVD(AN13)/UND(AN15))^2) -> 0.9294641423 | AO23: =SQRT(1-(OVD(AO13)/UND(AO15))^2) -> 0.9294641423 | AP23: =SQRT(1-(OVD(AP13)/UND(AP15))^2) -> 0.9294641423 | AQ23: =SQRT(1-(OVD(AQ13)/UND(AQ15))^2) -> 0.9294641423
D25: u= | E25: =SQRT(1-E23^2*(OVD(E21)/UND(E15))^2) -> 0.5753199619 | H25: =EQS(E25,"Units= ; EqnPrefix=Eqn. ; EqnNo= 42; Multiplication= 0; ShowWorking= 0; EqnStyle= 0; Eqp$H$25_0") ->  | AD25: u= | AE25: =SQRT(1-AE23^2*(OVD(AE21)/UND(AE15))^2) -> 1 | AF25: =SQRT(1-AF23^2*(OVD(AF21)/UND(AF15))^2) -> 0.9956711124 | AG25: =SQRT(1-AG23^2*(OVD(AG21)/UND(AG15))^2) -> 0.9825700262 | AH25: =SQRT(1-AH23^2*(OVD(AH21)/UND(AH15))^2) -> 0.960337793 | AI25: =SQRT(1-AI23^2*(OVD(AI21)/UND(AI15))^2) -> 0.9283186012 | AJ25: =SQRT(1-AJ23^2*(OVD(AJ21)/UND(AJ15))^2) -> 0.885451355 | AK25: =SQRT(1-AK23^2*(OVD(AK21)/UND(AK15))^2) -> 0.8300570504 | AL25: =SQRT(1-AL23^2*(OVD(AL21)/UND(AL15))^2) -> 0.7593992626 | AM25: =SQRT(1-AM23^2*(OVD(AM21)/UND(AM15))^2) -> 0.6686566393 | AN25: =SQRT(1-AN23^2*(OVD(AN21)/UND(AN15))^2) -> 0.6130494718 | AO25: =SQRT(1-AO23^2*(OVD(AO21)/UND(AO15))^2) -> 0.5479398604 | AP25: =SQRT(1-AP23^2*(OVD(AP21)/UND(AP15))^2) -> 0.4693900387 | AQ25: =SQRT(1-AQ23^2*(OVD(AQ21)/UND(AQ15))^2) -> 0.3689124668
C27: meridional radius of curvature
D28: rφ = | E28: =(OVD(E15^2)/UND(E13))*E25^3 -> 19460.15734 | F28: =INDEX($AE$3:$AP$7,$F$10,MATCH("length",$AE$2:$AP$2,0)) -> mm | H28: =EQS(E28,"Units= ; EqnPrefix=Eqn. ; EqnNo= 43; Multiplication= 0; ShowWorking= 0; EqnStyle= 0; Eqp$H$28_0") ->  | AD28: rφ = | AE28: =(OVD(AE15^2)/UND(AE13))*AE25^3 -> 102192.2634 | AF28: =(OVD(AF15^2)/UND(AF13))*AF25^3 -> 100870.8637 | AG28: =(OVD(AG15^2)/UND(AG13))*AG25^3 -> 96941.23613 | AH28: =(OVD(AH15^2)/UND(AH13))*AH25^3 -> 90508.64842 | AI28: =(OVD(AI15^2)/UND(AI13))*AI25^3 -> 81754.03122 | AJ28: =(OVD(AJ15^2)/UND(AJ13))*AJ25^3 -> 70943.42296 | AK28: =(OVD(AK15^2)/UND(AK13))*AK25^3 -> 58444.25766 | AL28: =(OVD(AL15^2)/UND(AL13))*AL25^3 -> 44753.65727 | AM28: =(OVD(AM15^2)/UND(AM13))*AM25^3 -> 30551.14574 | AN28: =(OVD(AN15^2)/UND(AN13))*AN25^3 -> 23545.3194 | AO28: =(OVD(AO15^2)/UND(AO13))*AO25^3 -> 16811.89631 | AP28: =(OVD(AP15^2)/UND(AP13))*AP25^3 -> 10568.65266 | AQ28: =(OVD(AQ15^2)/UND(AQ13))*AQ25^3 -> 5130.834589
E29: 4524
C30: latitudinal radius of curvature (hoop)
D31: rθ = | E31: =(OVD(E15^2)/UND(E13))*E25 -> 58793.24911 | F31: =INDEX($AE$3:$AP$7,$F$10,MATCH("length",$AE$2:$AP$2,0)) -> mm | H31: =EQS(E31,"Units= ; EqnPrefix=Eqn. ; EqnNo= 44; Multiplication= 0; ShowWorking= 0; EqnStyle= 0; Eqp$H$31_0") ->  | AD31: rθ = | AE31: =(OVD(AE15^2)/UND(AE13))*AE25 -> 102192.2634 | AF31: =(OVD(AF15^2)/UND(AF13))*AF25 -> 101749.8846 | AG31: =(OVD(AG15^2)/UND(AG13))*AG25 -> 100411.055 | AH31: =(OVD(AH15^2)/UND(AH13))*AH25 -> 98139.09274 | AI31: =(OVD(AI15^2)/UND(AI13))*AI25 -> 94866.97905 | AJ31: =(OVD(AJ15^2)/UND(AJ13))*AJ25 -> 90486.27814 | AK31: =(OVD(AK15^2)/UND(AK13))*AK25 -> 84825.40877 | AL31: =(OVD(AL15^2)/UND(AL13))*AL25 -> 77604.7295 | AM31: =(OVD(AM15^2)/UND(AM13))*AM25 -> 68331.53544 | AN31: =(OVD(AN15^2)/UND(AN13))*AN25 -> 62648.91313 | AO31: =(OVD(AO15^2)/UND(AO13))*AO25 -> 55995.21457 | AP31: =(OVD(AP15^2)/UND(AP13))*AP25 -> 47968.03049 | AQ31: =(OVD(AQ15^2)/UND(AQ13))*AQ25 -> 37700
E32: 67860
C33: meridional stress
D34: σφ = | E34: =(OVD(E19*E15^2)/UND(2*E13*E17))*E25 -> 10.91784314 | F34: =INDEX($AE$3:$AP$7,$F$10,MATCH("Stress",$AE$2:$AP$2,0)) -> MPa | H34: =EQS(E34,"Units= ; EqnPrefix=Eqn. ; EqnNo= 45; Multiplication= 0; ShowWorking= 0; EqnStyle= 0; Eqp$H$34_0") ->  | AD34: σφ = | AE34: =(OVD(AE19*AE15^2)/UND(2*AE13*AE17))*AE25 -> 18.97699344 | AF34: =(OVD(AF19*AF15^2)/UND(2*AF13*AF17))*AF25 -> 18.89484417 | AG34: =(OVD(AG19*AG15^2)/UND(2*AG13*AG17))*AG25 -> 18.64622494 | AH34: =(OVD(AH19*AH15^2)/UND(2*AH13*AH17))*AH25 -> 18.224324 | AI34: =(OVD(AI19*AI15^2)/UND(2*AI13*AI17))*AI25 -> 17.616696 | AJ34: =(OVD(AJ19*AJ15^2)/UND(2*AJ13*AJ17))*AJ25 -> 16.80320455 | AK34: =(OVD(AK19*AK15^2)/UND(2*AK13*AK17))*AK25 -> 15.7519872 | AL34: =(OVD(AL19*AL15^2)/UND(2*AL13*AL17))*AL25 -> 14.41111482 | AM34: =(OVD(AM19*AM15^2)/UND(2*AM13*AM17))*AM25 -> 12.68909266 | AN34: =(OVD(AN19*AN15^2)/UND(2*AN13*AN17))*AN25 -> 11.6338358 | AO34: =(OVD(AO19*AO15^2)/UND(2*AO13*AO17))*AO25 -> 10.39825114 | AP34: =(OVD(AP19*AP15^2)/UND(2*AP13*AP17))*AP25 -> 8.907611683 | AQ34: =(OVD(AQ19*AQ15^2)/UND(2*AQ13*AQ17))*AQ25 -> 7.000849462
C36: latitudinal stress (notethis may be compressive)
D37: σθ = | E37: =E34*(2-1/E25^2) -> -11.14942582 | F37: =INDEX($AE$3:$AP$7,$F$10,MATCH("Stress",$AE$2:$AP$2,0)) -> MPa | H37: =EQS(E37,"Units= ; EqnPrefix=Eqn. ; EqnNo= 92; Multiplication= 0; ShowWorking= 0; EqnStyle= 0; Eqp$H$41_0") ->  | AD37: σθ = | AE37: =AE34*(2-1/AE25^2) -> 18.97699344 | AF37: 18.73018846 | AG37: 17.97882038 | AH37: 16.68789967 | AI37: 14.79106389 | AJ37: 12.17440911 | AK37: 8.641698331 | AL37: 3.832748653 | AM37: -3.002589399 | AN37: -7.687405118 | AO37: -13.83684859 | AP37: -22.61382684 | AQ37: -37.43867011
C38: Principle stresses
D39: σ1 = | E39: =MAX(E34,E37,0) -> 10.91784314 | F39: =INDEX($AE$3:$AP$7,$F$10,MATCH("Stress",$AE$2:$AP$2,0)) -> MPa | H39: =EQS(E39,"Units= ; EqnPrefix=Eqn. ; EqnNo= 1; Multiplication= 0; ShowWorking= 0; EqnStyle= 0; Eqp$H$39_2") ->  | AD39: σ1 = | AE39: =MAX(AE34,AE37,0) -> 18.97699344 | AF39: =MAX(AF34,AF37,0) -> 18.89484417 | AG39: =MAX(AG34,AG37,0) -> 18.64622494 | AH39: =MAX(AH34,AH37,0) -> 18.224324 | AI39: =MAX(AI34,AI37,0) -> 17.616696 | AJ39: =MAX(AJ34,AJ37,0) -> 16.80320455 | AK39: =MAX(AK34,AK37,0) -> 15.7519872 | AL39: =MAX(AL34,AL37,0) -> 14.41111482 | AM39: =MAX(AM34,AM37,0) -> 12.68909266 | AN39: =MAX(AN34,AN37,0) -> 11.6338358 | AO39: =MAX(AO34,AO37,0) -> 10.39825114 | AP39: =MAX(AP34,AP37,0) -> 8.907611683 | AQ39: =MAX(AQ34,AQ37,0) -> 7.000849462
D40: σ3 = | E40: =MIN(E34,E37,0) -> -11.14942582 | F40: MPa | H40: =EQS(E40,"Units= ; EqnPrefix=Eqn. ; EqnNo= 2; Multiplication= 0; ShowWorking= 0; EqnStyle= 0; Eqp$H$40_2") ->  | AD40: σ3 = | AE40: =MIN(AE34,AE37,0) -> 0 | AF40: =MIN(AF34,AF37,0) -> 0 | AG40: =MIN(AG34,AG37,0) -> 0 | AH40: =MIN(AH34,AH37,0) -> 0 | AI40: =MIN(AI34,AI37,0) -> 0 | AJ40: =MIN(AJ34,AJ37,0) -> 0 | AK40: =MIN(AK34,AK37,0) -> 0 | AL40: =MIN(AL34,AL37,0) -> 0 | AM40: =MIN(AM34,AM37,0) -> -3.002589399 | AN40: =MIN(AN34,AN37,0) -> -7.687405118 | AO40: =MIN(AO34,AO37,0) -> -13.83684859 | AP40: =MIN(AP34,AP37,0) -> -22.61382684 | AQ40: =MIN(AQ34,AQ37,0) -> -37.43867011
C41: Stress Intensity (twice maximum shear - Tresca failure Criterion)
D42: σe = | E42: =ABS(E39-E40) -> 22.06726896 | F42: MPa | H42: =EQS(E42,"Units= ; EqnPrefix=Eqn. ; EqnNo= 3; Multiplication= 0; ShowWorking= 0; EqnStyle= 0; Eqp$H$41_2") ->  | AD42: σe = | AE42: =ABS(AE39-AE40) -> 18.97699344 | AF42: =ABS(AF39-AF40) -> 18.89484417 | AG42: =ABS(AG39-AG40) -> 18.64622494 | AH42: =ABS(AH39-AH40) -> 18.224324 | AI42: =ABS(AI39-AI40) -> 17.616696 | AJ42: =ABS(AJ39-AJ40) -> 16.80320455 | AK42: =ABS(AK39-AK40) -> 15.7519872 | AL42: =ABS(AL39-AL40) -> 14.41111482 | AM42: =ABS(AM39-AM40) -> 15.69168205 | AN42: =ABS(AN39-AN40) -> 19.32124092 | AO42: =ABS(AO39-AO40) -> 24.23509973 | AP42: =ABS(AP39-AP40) -> 31.52143852 | AQ42: =ABS(AQ39-AQ40) -> 44.43951958
AD46: =0.816*2470 -> 2015.52

Sheet Head
B1: Purpose of calculation: | AD1: Table of compatible units
C2: Calculate stress in a pressure vessel ellipseoidal head. | AE2: Length | AF2: Time | AG2: Mass | AH2: Velocity | AI2: Acceleration | AJ2: Force | AK2: LDForce | AL2: Work | AM2: Energy | AN2: Power | AO2: Density | AP2: Stress
AD3: Fundamental | AE3: m | AF3: s | AG3: kg | AH3: m/s | AI3: m/s² | AJ3: kg.m/s² | AK3: kg/s² | AL3: kg.m/s².m | AM3: kg.m/s².m | AN3: kg.m²/s³ | AO3: kg/m³ | AP3: kg/m.s²
B4: Calculation Reference | AD4: SI | AE4: m | AF4: s | AG4: kg | AH4: m/s | AI4: m/s² | AJ4: N | AK4: N/m | AL4: J | AM4: J | AN4: W | AO4: kg/m³ | AP4: N/m²
C5: http://school.mech.uwa.edu.au/~swright/DANotes/pressVessels/shells/shells.html | AD5: SI (mm) | AE5: mm | AF5: s | AG5: t | AH5: mm/s | AI5: mm/s² | AJ5: N | AK5: N/mm | AL5: mJ | AM5: mJ | AN5: mW | AO5: t/mm³ | AP5: MPa
C6: D:\SCAN\1335-1-2106-1-2-20171103.pdf | AD6: US Unit (ft) | AE6: ft | AF6: s | AG6: slug | AH6: ft/s | AI6: ft/s² | AJ6: lbf | AK6: lbf.ft | AL6: ft.lb | AM6: ft.lb | AN6: ft.lb/s | AO6: slug/ft³ | AP6: lbf/ft²
B7: Calculation Validation | AD7: US Unit (in) | AE7: in | AF7: s | AG7: lbf.s²/in | AH7: in/s | AI7: in/s² | AJ7: lbf | AK7: lbf.in | AL7: in.lbf | AM7: in.lbf | AN7: in.lbf/s | AO7: lbf.s²/in⁴ | AP7: psi
C8: Formulas checked with XLC addin.
B10: Calculation Units | F10: 3
C12: depth of head
D13: b = | E13: 700 | F13: =INDEX($AE$3:$AP$7,$F$10,MATCH("length",$AE$2:$AP$2,0)) -> mm | AD13: b = | AE13: =$E$13 -> 700 | AF13: =$E$13 -> 700 | AG13: 700 | AH13: 700 | AI13: 700 | AJ13: 700 | AK13: 700 | AL13: 700 | AM13: 700 | AN13: 700 | AO13: 700 | AP13: 700 | AQ13: 700
C14: Cylinder radius
D15: a = | E15: 1400 | F15: =INDEX($AE$3:$AP$7,$F$10,MATCH("length",$AE$2:$AP$2,0)) -> mm | AD15: a = | AE15: =$E$15 -> 1400 | AF15: =$E$15 -> 1400 | AG15: 1400 | AH15: 1400 | AI15: 1400 | AJ15: 1400 | AK15: 1400 | AL15: 1400 | AM15: 1400 | AN15: 1400 | AO15: 1400 | AP15: 1400 | AQ15: 1400
C16: thickness
D17: t = | E17: 3 | F17: =INDEX($AE$3:$AP$7,$F$10,MATCH("length",$AE$2:$AP$2,0)) -> mm | AD17: t = | AE17: =$E$17 -> 3 | AF17: =$E$17 -> 3 | AG17: 3 | AH17: 3 | AI17: 3 | AJ17: 3 | AK17: 3 | AL17: 3 | AM17: 3 | AN17: 3 | AO17: 3 | AP17: 3 | AQ17: 3
C18: internal pressure
D19: P = | E19: 1.65 | F19: =INDEX($AE$3:$AP$7,$F$10,MATCH("Stress",$AE$2:$AP$2,0)) -> MPa | AD19: P = | AE19: =$E$19 -> 1.65 | AF19: =$E$19 -> 1.65 | AG19: 1.65 | AH19: 1.65 | AI19: 1.65 | AJ19: 1.65 | AK19: 1.65 | AL19: 1.65 | AM19: 1.65 | AN19: 1.65 | AO19: 1.65 | AP19: 1.65 | AQ19: 1.65
C20: position from cylinder axis
D21: r = | E21: 1200 | F21: =INDEX($AE$3:$AP$7,$F$10,MATCH("length",$AE$2:$AP$2,0)) -> mm | AD21: r = | AE21: 0 | AF21: =AE21+$E$15/10 -> 140 | AG21: =AF21+$E$15/10 -> 280 | AH21: 420 | AI21: 560 | AJ21: 700 | AK21: 840 | AL21: 980 | AM21: 1120 | AN21: =AM21+$E$15/20 -> 1190 | AO21: =AN21+$E$15/20 -> 1260 | AP21: 1330 | AQ21: 1400
D23: ε = | E23: =SQRT(1-(OVD(E13)/UND(E15))^2) -> 0.8660254038 | H23: =EQS(E23,"Units= ; EqnPrefix=Eqn. ; EqnNo= 41; Multiplication= 0; ShowWorking= 0; EqnStyle= 0; Eqp$H$23_0") ->  | AD23: ε = | AE23: =SQRT(1-(OVD(AE13)/UND(AE15))^2) -> 0.8660254038 | AF23: =SQRT(1-(OVD(AF13)/UND(AF15))^2) -> 0.8660254038 | AG23: =SQRT(1-(OVD(AG13)/UND(AG15))^2) -> 0.8660254038 | AH23: =SQRT(1-(OVD(AH13)/UND(AH15))^2) -> 0.8660254038 | AI23: =SQRT(1-(OVD(AI13)/UND(AI15))^2) -> 0.8660254038 | AJ23: =SQRT(1-(OVD(AJ13)/UND(AJ15))^2) -> 0.8660254038 | AK23: =SQRT(1-(OVD(AK13)/UND(AK15))^2) -> 0.8660254038 | AL23: =SQRT(1-(OVD(AL13)/UND(AL15))^2) -> 0.8660254038 | AM23: =SQRT(1-(OVD(AM13)/UND(AM15))^2) -> 0.8660254038 | AN23: =SQRT(1-(OVD(AN13)/UND(AN15))^2) -> 0.8660254038 | AO23: =SQRT(1-(OVD(AO13)/UND(AO15))^2) -> 0.8660254038 | AP23: =SQRT(1-(OVD(AP13)/UND(AP15))^2) -> 0.8660254038 | AQ23: =SQRT(1-(OVD(AQ13)/UND(AQ15))^2) -> 0.8660254038
D25: u= | E25: =SQRT(1-E23^2*(OVD(E21)/UND(E15))^2) -> 0.6700593943 | H25: =EQS(E25,"Units= ; EqnPrefix=Eqn. ; EqnNo= 42; Multiplication= 0; ShowWorking= 0; EqnStyle= 0; Eqp$H$25_0") ->  | AD25: u= | AE25: =SQRT(1-AE23^2*(OVD(AE21)/UND(AE15))^2) -> 1 | AF25: =SQRT(1-AF23^2*(OVD(AF21)/UND(AF15))^2) -> 0.9962429423 | AG25: =SQRT(1-AG23^2*(OVD(AG21)/UND(AG15))^2) -> 0.9848857802 | AH25: =SQRT(1-AH23^2*(OVD(AH21)/UND(AH15))^2) -> 0.9656603958 | AI25: =SQRT(1-AI23^2*(OVD(AI21)/UND(AI15))^2) -> 0.938083152 | AJ25: =SQRT(1-AJ23^2*(OVD(AJ21)/UND(AJ15))^2) -> 0.9013878189 | AK25: =SQRT(1-AK23^2*(OVD(AK21)/UND(AK15))^2) -> 0.8544003745 | AL25: =SQRT(1-AL23^2*(OVD(AL21)/UND(AL15))^2) -> 0.795298686 | AM25: =SQRT(1-AM23^2*(OVD(AM21)/UND(AM15))^2) -> 0.7211102551 | AN25: =SQRT(1-AN23^2*(OVD(AN21)/UND(AN15))^2) -> 0.6768493185 | AO25: =SQRT(1-AO23^2*(OVD(AO21)/UND(AO15))^2) -> 0.6264982043 | AP25: =SQRT(1-AP23^2*(OVD(AP21)/UND(AP15))^2) -> 0.56844085 | AQ25: =SQRT(1-AQ23^2*(OVD(AQ21)/UND(AQ15))^2) -> 0.5
C27: meridional radius of curvature
D28: rφ = | E28: =(OVD(E15^2)/UND(E13))*E25^3 -> 842.3603814 | F28: =INDEX($AE$3:$AP$7,$F$10,MATCH("length",$AE$2:$AP$2,0)) -> mm | H28: =EQS(E28,"Units= ; EqnPrefix=Eqn. ; EqnNo= 43; Multiplication= 0; ShowWorking= 0; EqnStyle= 0; Eqp$H$28_0") ->  | AD28: rφ = | AE28: =(OVD(AE15^2)/UND(AE13))*AE25^3 -> 2800 | AF28: =(OVD(AF15^2)/UND(AF13))*AF25^3 -> 2768.559137 | AG28: =(OVD(AG15^2)/UND(AG13))*AG25^3 -> 2674.949779 | AH28: =(OVD(AH15^2)/UND(AH13))*AH25^3 -> 2521.339293 | AI28: =(OVD(AI15^2)/UND(AI13))*AI25^3 -> 2311.436886 | AJ28: =(OVD(AJ15^2)/UND(AJ13))*AJ25^3 -> 2050.657288 | AK28: =(OVD(AK15^2)/UND(AK13))*AK25^3 -> 1746.394366 | AL28: =(OVD(AL15^2)/UND(AL13))*AL25^3 -> 1408.473973 | AM28: =(OVD(AM15^2)/UND(AM13))*AM25^3 -> 1049.936531 | AN28: =(OVD(AN15^2)/UND(AN13))*AN25^3 -> 868.2284633 | AO28: =(OVD(AO15^2)/UND(AO13))*AO25^3 -> 688.5215265 | AP28: =(OVD(AP15^2)/UND(AP13))*AP25^3 -> 514.2968591 | AQ28: =(OVD(AQ15^2)/UND(AQ13))*AQ25^3 -> 350
C30: latitudinal radius of curvature (hoop)
D31: rθ = | E31: =(OVD(E15^2)/UND(E13))*E25 -> 1876.166304 | F31: =INDEX($AE$3:$AP$7,$F$10,MATCH("length",$AE$2:$AP$2,0)) -> mm | H31: =EQS(E31,"Units= ; EqnPrefix=Eqn. ; EqnNo= 44; Multiplication= 0; ShowWorking= 0; EqnStyle= 0; Eqp$H$31_0") ->  | AD31: rθ = | AE31: =(OVD(AE15^2)/UND(AE13))*AE25 -> 2800 | AF31: =(OVD(AF15^2)/UND(AF13))*AF25 -> 2789.480238 | AG31: =(OVD(AG15^2)/UND(AG13))*AG25 -> 2757.680185 | AH31: =(OVD(AH15^2)/UND(AH13))*AH25 -> 2703.849108 | AI31: =(OVD(AI15^2)/UND(AI13))*AI25 -> 2626.632826 | AJ31: =(OVD(AJ15^2)/UND(AJ13))*AJ25 -> 2523.885893 | AK31: =(OVD(AK15^2)/UND(AK13))*AK25 -> 2392.321049 | AL31: =(OVD(AL15^2)/UND(AL13))*AL25 -> 2226.836321 | AM31: =(OVD(AM15^2)/UND(AM13))*AM25 -> 2019.108714 | AN31: =(OVD(AN15^2)/UND(AN13))*AN25 -> 1895.178092 | AO31: =(OVD(AO15^2)/UND(AO13))*AO25 -> 1754.194972 | AP31: =(OVD(AP15^2)/UND(AP13))*AP25 -> 1591.63438 | AQ31: =(OVD(AQ15^2)/UND(AQ13))*AQ25 -> 1400
C33: meridional stress
D34: σφ = | E34: =(OVD(E19*E15^2)/UND(2*E13*E17))*E25 -> 515.9457336 | F34: =INDEX($AE$3:$AP$7,$F$10,MATCH("Stress",$AE$2:$AP$2,0)) -> MPa | H34: =EQS(E34,"Units= ; EqnPrefix=Eqn. ; EqnNo= 45; Multiplication= 0; ShowWorking= 0; EqnStyle= 0; Eqp$H$34_0") ->  | AD34: σφ = | AE34: =(OVD(AE19*AE15^2)/UND(2*AE13*AE17))*AE25 -> 770 | AF34: =(OVD(AF19*AF15^2)/UND(2*AF13*AF17))*AF25 -> 767.1070655 | AG34: =(OVD(AG19*AG15^2)/UND(2*AG13*AG17))*AG25 -> 758.3620507 | AH34: =(OVD(AH19*AH15^2)/UND(2*AH13*AH17))*AH25 -> 743.5585048 | AI34: =(OVD(AI19*AI15^2)/UND(2*AI13*AI17))*AI25 -> 722.324027 | AJ34: =(OVD(AJ19*AJ15^2)/UND(2*AJ13*AJ17))*AJ25 -> 694.0686205 | AK34: =(OVD(AK19*AK15^2)/UND(2*AK13*AK17))*AK25 -> 657.8882884 | AL34: =(OVD(AL19*AL15^2)/UND(2*AL13*AL17))*AL25 -> 612.3799882 | AM34: =(OVD(AM19*AM15^2)/UND(2*AM13*AM17))*AM25 -> 555.2548964 | AN34: =(OVD(AN19*AN15^2)/UND(2*AN13*AN17))*AN25 -> 521.1739753 | AO34: =(OVD(AO19*AO15^2)/UND(2*AO13*AO17))*AO25 -> 482.4036173 | AP34: =(OVD(AP19*AP15^2)/UND(2*AP13*AP17))*AP25 -> 437.6994545 | AQ34: =(OVD(AQ19*AQ15^2)/UND(2*AQ13*AQ17))*AQ25 -> 385
C36: latitudinal stress (notethis may be compressive)
D37: σθ = | E37: =E34*(2-1/E25^2) -> -117.260394 | F37: =INDEX($AE$3:$AP$7,$F$10,MATCH("Stress",$AE$2:$AP$2,0)) -> MPa | H37: =EQS(E37,"Units= ; EqnPrefix=Eqn. ; EqnNo= 92; Multiplication= 0; ShowWorking= 0; EqnStyle= 0; Eqp$H$41_0") ->  | AD37: σθ = | AE37: =AE34*(2-1/AE25^2) -> 770 | AF37: =AF34*(2-1/AF25^2) -> 761.3102867 | AG37: 734.9075543 | AH37: 689.735235 | AI37: 623.8252961 | AJ37: 533.8989389 | AK37: 414.5597434 | AL37: 256.5702718 | AM37: 42.71191511 | AN37: -95.27600639 | AO37: -264.2465674 | AP37: -479.1835421 | AQ37: -770
C38: Principle stresses
D39: σ1 = | E39: =MAX(E34,E37,0) -> 515.9457336 | F39: =INDEX($AE$3:$AP$7,$F$10,MATCH("Stress",$AE$2:$AP$2,0)) -> MPa | H39: =EQS(E39,"Units= ; EqnPrefix=Eqn. ; EqnNo= 1; Multiplication= 0; ShowWorking= 0; EqnStyle= 0; Eqp$H$39_2") ->  | AD39: σ1 = | AE39: =MAX(AE34,AE37,0) -> 770 | AF39: =MAX(AF34,AF37,0) -> 767.1070655 | AG39: =MAX(AG34,AG37,0) -> 758.3620507 | AH39: =MAX(AH34,AH37,0) -> 743.5585048 | AI39: =MAX(AI34,AI37,0) -> 722.324027 | AJ39: =MAX(AJ34,AJ37,0) -> 694.0686205 | AK39: =MAX(AK34,AK37,0) -> 657.8882884 | AL39: =MAX(AL34,AL37,0) -> 612.3799882 | AM39: =MAX(AM34,AM37,0) -> 555.2548964 | AN39: =MAX(AN34,AN37,0) -> 521.1739753 | AO39: =MAX(AO34,AO37,0) -> 482.4036173 | AP39: =MAX(AP34,AP37,0) -> 437.6994545 | AQ39: =MAX(AQ34,AQ37,0) -> 385
D40: σ3 = | E40: =MIN(E34,E37,0) -> -117.260394 | F40: MPa | H40: =EQS(E40,"Units= ; EqnPrefix=Eqn. ; EqnNo= 2; Multiplication= 0; ShowWorking= 0; EqnStyle= 0; Eqp$H$40_2") ->  | AD40: σ3 = | AE40: =MIN(AE34,AE37,0) -> 0 | AF40: =MIN(AF34,AF37,0) -> 0 | AG40: =MIN(AG34,AG37,0) -> 0 | AH40: =MIN(AH34,AH37,0) -> 0 | AI40: =MIN(AI34,AI37,0) -> 0 | AJ40: =MIN(AJ34,AJ37,0) -> 0 | AK40: =MIN(AK34,AK37,0) -> 0 | AL40: =MIN(AL34,AL37,0) -> 0 | AM40: =MIN(AM34,AM37,0) -> 0 | AN40: =MIN(AN34,AN37,0) -> -95.27600639 | AO40: =MIN(AO34,AO37,0) -> -264.2465674 | AP40: =MIN(AP34,AP37,0) -> -479.1835421 | AQ40: =MIN(AQ34,AQ37,0) -> -770
C41: Stress Intensity (twice maximum shear - Tresca failure Criterion)
D42: σe = | E42: =ABS(E39-E40) -> 633.2061276 | F42: MPa | H42: =EQS(E42,"Units= ; EqnPrefix=Eqn. ; EqnNo= 3; Multiplication= 0; ShowWorking= 0; EqnStyle= 0; Eqp$H$41_2") ->  | AD42: σe = | AE42: =ABS(AE39-AE40) -> 770 | AF42: =ABS(AF39-AF40) -> 767.1070655 | AG42: =ABS(AG39-AG40) -> 758.3620507 | AH42: =ABS(AH39-AH40) -> 743.5585048 | AI42: =ABS(AI39-AI40) -> 722.324027 | AJ42: =ABS(AJ39-AJ40) -> 694.0686205 | AK42: =ABS(AK39-AK40) -> 657.8882884 | AL42: =ABS(AL39-AL40) -> 612.3799882 | AM42: =ABS(AM39-AM40) -> 555.2548964 | AN42: =ABS(AN39-AN40) -> 616.4499817 | AO42: =ABS(AO39-AO40) -> 746.6501848 | AP42: =ABS(AP39-AP40) -> 916.8829966 | AQ42: =ABS(AQ39-AQ40) -> 1155
AD46: =0.816*2470 -> 2015.52
